fUST/lending_fUST_20251105
["ID","MTS","AMOUNT","RATE_DAILY","PERIOD"]
[393162086,1762289489729,-662.742261,0.00023288,7]
[393162087,1762289489739,-325.011398,0.00023288,7]
[393162088,1762289489748,-662.742261,0.00023288,7]
[393162089,1762289489757,-325.011398,0.00023288,7]
[393162090,1762289489771,-662.742261,0.00023288,7]
[393162091,1762289489781,-662.742261,0.00023288,7]
[393162092,1762289489792,-325.011398,0.00023288,7]
[393162093,1762289489801,-662.742262,0.00023288,7]
[393162094,1762289489812,-325.011398,0.00023288,7]
[393162095,1762289489821,-325.011398,0.00023288,7]
[393162096,1762289489830,-325.011398,0.00023288,7]
[393162097,1762289489840,-325.011398,0.00023288,7]
[393162098,1762289489850,-325.011398,0.00023288,7]
[393162099,1762289489860,-541.528357,0.00023288,7]
[393162100,1762289489869,-325.011398,0.00023288,7]
[393162101,1762289489879,-541.528357,0.00023288,7]
[393162102,1762289489889,-325.011398,0.00023288,7]
[393162103,1762289489898,-541.528357,0.00023288,7]
[393162104,1762289489908,-325.011398,0.00023288,7]
[393162105,1762289489917,-541.528357,0.00023288,7]
[393162106,1762289489929,-541.528357,0.00023288,7]
[393162107,1762289490064,-325.011398,0.00023288,7]
[393162108,1762289490074,-325.011398,0.00023288,7]
[393162109,1762289490083,-541.528357,0.00023288,7]
[393162110,1762289490092,-325.011404,0.00023288,7]
[393162111,1762289490101,-541.528357,0.00023288,7]
[393162112,1762289490111,-541.528357,0.00023288,7]
[393162113,1762289490120,-541.528357,0.00023288,7]
[393162114,1762289490129,-541.528357,0.00023288,7]
[393162115,1762289490138,-541.528357,0.00023288,7]
[393162116,1762289490148,-541.528357,0.00023288,7]
[393162117,1762289490157,-541.528357,0.00023288,7]
[393162118,1762289490167,-541.528357,0.00023288,7]
[393162119,1762289490176,-541.528357,0.00023288,7]
[393162120,1762289490187,-541.528357,0.00023288,7]
[393162121,1762289490196,-541.528357,0.00023288,7]
[393162122,1762289490207,-541.528357,0.00023288,7]
[393162123,1762289490215,-541.528357,0.00023288,7]
[393162124,1762289490224,-541.528348,0.00023288,7]
[393162125,1762289490234,-298.363109,0.00023288,7]
[393162126,1762289490243,-298.363109,0.00023288,7]
[393162127,1762289490252,-3578.763523,0.00023288,7]
[393162128,1762289490261,-298.363109,0.00023288,7]
[393162129,1762289490271,-3578.763523,0.00023288,7]
[393162130,1762289490280,-298.363109,0.00023288,7]
[393162131,1762289490289,-3578.763523,0.00023288,7]
[393162132,1762289490298,-298.363109,0.00023288,7]
[393162133,1762289490307,-3578.763523,0.00023288,7]
[393162134,1762289490316,-298.363109,0.00023288,7]
[393162135,1762289490326,-3578.763523,0.00023288,7]
[393162136,1762289490335,-298.363109,0.00023288,7]
[393162137,1762289490344,-3578.763523,0.00023288,7]
[393162138,1762289490353,-298.363109,0.00023288,7]
[393162139,1762289490363,-3578.763523,0.00023288,7]
[393162140,1762289490374,-298.363109,0.00023288,7]
[393162141,1762289490383,-3578.763523,0.00023288,7]
[393162142,1762289490392,-298.363109,0.00023288,7]
[393162143,1762289490402,-3578.763523,0.00023288,7]
[393162144,1762289490412,-298.363109,0.00023288,7]
[393162145,1762289490422,-3578.763523,0.00023288,7]
[393162146,1762289490434,-298.363109,0.00023288,7]
[393162147,1762289490444,-3578.763523,0.00023288,7]
[393162148,1762289490453,-298.363109,0.00023288,7]
[393162149,1762289490462,-3578.763523,0.00023288,7]
[393162150,1762289490471,-298.363109,0.00023288,7]
[393162151,1762289490481,-3578.763523,0.00023288,7]
[393162152,1762289490490,-298.363109,0.00023288,7]
[393162153,1762289490500,-3578.763523,0.00023288,7]
[393162154,1762289490509,-298.363109,0.00023288,7]
[393162155,1762289490519,-3578.763523,0.00023288,7]
[393162156,1762289490528,-298.363109,0.00023288,7]
[393162157,1762289490538,-3578.763523,0.00023288,7]
[393162158,1762289490547,-3578.763523,0.00023288,7]
[393162159,1762289490556,-3578.763523,0.00023288,7]
[393162160,1762289490565,-3578.763523,0.00023288,7]
[393162161,1762289490574,-151.0,0.00023288,7]
[393162162,1762289490583,-3578.76351672,0.00023288,7]
[393162163,1762289490592,-298.363109,0.00023288,7]
[393162164,1762289490602,-151.0,0.00023288,7]
[393162165,1762289490611,-151.0,0.00023288,7]
[393162166,1762289490620,-298.363109,0.00023288,7]
[393162167,1762289490630,-151.0,0.00023288,7]
[393162168,1762289490639,-298.36311,0.00023288,7]
[393162169,1762289490649,-151.0,0.00023288,7]
[393162170,1762289490658,-151.0,0.00023288,7]
[393162171,1762289490667,-151.0,0.00023288,7]
[393162172,1762289490676,-151.0,0.00023288,7]
[393162173,1762289490687,-151.0,0.00023288,7]
[393162174,1762289490696,-151.0,0.00023288,7]
[393162175,1762289490706,-151.0,0.00023288,7]
[393162176,1762289490715,-151.0,0.00023288,7]
[393162177,1762289490724,-151.0,0.00023288,7]
[393162178,1762289490734,-151.0,0.00023288,7]
[393162179,1762289490743,-151.0,0.00023288,7]
[393162180,1762289490753,-151.0,0.00023288,7]
[393162181,1762289490763,-151.0,0.00023288,7]
[393162182,1762289490776,-151.0,0.00023288,7]
[393162183,1762289490786,-239.089699,0.00023288,7]
[393162184,1762289490795,-151.0,0.00023288,7]
[393162185,1762289490804,-151.0,0.00023288,7]
[393162186,1762289490815,-151.0,0.00023288,7]
[393162187,1762289490826,-151.0,0.00023288,7]
[393162188,1762289490836,-151.0,0.00023288,7]
[393162189,1762289490847,-288.262163,0.00023288,7]
[393162190,1762289490857,-179.013027,0.00023288,7]
[393162191,1762289490867,-179.013027,0.00023288,7]
[393162192,1762289490876,-179.013027,0.00023288,7]
[393162193,1762289490886,-179.013035,0.00023288,7]
[393162194,1762289490896,-195.238872,0.00023288,7]
[393162195,1762289490905,-281.217472,0.00023288,7]
[393162196,1762289490915,-281.217472,0.00023288,7]
[393162197,1762289490924,-281.217472,0.00023288,7]
[393162198,1762289490935,-281.217477,0.00023288,7]
[393162199,1762289490945,-186.965466,0.00023288,7]
[393162200,1762289490955,-186.965466,0.00023288,7]
[393162201,1762289490966,-186.965466,0.00023288,7]
[393162202,1762289490976,-186.965475,0.00023288,7]
[393162203,1762289490986,-151.0,0.00023288,7]
[393162204,1762289490996,-208.396469,0.00023288,7]
[393162205,1762289491005,-151.0,0.00023288,7]
[393162206,1762289491015,-151.0,0.00023288,7]
[393162207,1762289491024,-151.0,0.00023288,7]
[393162208,1762289491032,-151.0,0.00023288,7]
[393162209,1762289491040,-151.0,0.00023288,7]
[393162210,1762289491049,-151.0,0.00023288,7]
[393162211,1762289491058,-151.0,0.00023288,7]
[393162212,1762289491067,-151.0,0.00023288,7]
[393162213,1762289491076,-258.188651,0.00023288,7]
[393162214,1762289491085,-258.188651,0.00023288,7]
[393162215,1762289491094,-258.188651,0.00023288,7]
[393162216,1762289491103,-258.18866,0.00023288,7]
[393162217,1762289491113,-151.0,0.00023288,7]
[393162218,1762289491122,-151.0,0.00023288,7]
[393162219,1762289491131,-151.0,0.00023288,7]
[393162220,1762289491140,-505.851222,0.00023288,7]
[393162221,1762289491149,-505.851222,0.00023288,7]
[393162222,1762289491159,-505.851222,0.00023288,7]
[393162223,1762289491169,-505.851216,0.00023288,7]
[393162224,1762289491178,-185.590199,0.00023288,7]
[393162225,1762289491189,-185.590199,0.00023288,7]
[393162226,1762289491198,-185.590199,0.00023288,7]
[393162227,1762289491207,-185.590193,0.00023288,7]
[393162228,1762289491216,-369.96206,0.00023288,7]
[393162229,1762289491225,-151.0,0.00023288,7]
[393162230,1762289491235,-736.185944,0.00023288,7]
[393162231,1762289491244,-369.96206,0.00023288,7]
[393162232,1762289491254,-151.0,0.00023288,7]
[393162233,1762289491263,-736.185944,0.00023288,7]
[393162234,1762289491273,-369.96206,0.00023288,7]
[393162235,1762289491282,-281.603186,0.00023288,7]
[393162236,1762289491291,-1038.383699,0.00023288,7]
[393162237,1762289491300,-736.185944,0.00023288,7]
[393162238,1762289491310,-369.962056,0.00023288,7]
[393162239,1762289491319,-1038.383699,0.00023288,7]
[393162240,1762289491328,-736.18594,0.00023288,7]
[393162241,1762289491338,-1038.383699,0.00023288,7]
[393162242,1762289491347,-1038.383704,0.00023288,7]
[393162243,1762289491356,-151.0,0.00023288,7]
[393162244,1762289491366,-151.0,0.00023288,7]
[393162245,1762289491375,-151.0,0.00023288,7]
[393162246,1762289491384,-151.0,0.00023288,7]
[393162247,1762289491393,-151.0,0.00023288,7]
[393162248,1762289491402,-151.0,0.00023288,7]
[393162249,1762289491413,-940.041461,0.00023288,7]
[393162250,1762289491422,-940.041461,0.00023288,7]
[393162251,1762289491433,-151.0,0.00023288,7]
[393162252,1762289491442,-940.041461,0.00023288,7]
[393162253,1762289491453,-151.0,0.00023288,7]
[393162254,1762289491462,-192.385285,0.00023288,7]
[393162255,1762289491471,-940.04146,0.00023288,7]
[393162256,1762289491482,-151.0,0.00023288,7]
[393162257,1762289491491,-192.385285,0.00023288,7]
[393162258,1762289491501,-151.0,0.00023288,7]
[393162259,1762289491510,-192.385285,0.00023288,7]
[393162260,1762289491519,-192.385276,0.00023288,7]
[393162261,1762289491529,-151.0,0.00023288,7]
[393162262,1762289491538,-151.0,0.00023288,7]
[393162263,1762289491548,-205.339599,0.00023288,7]
[393162264,1762289491557,-151.0,0.00023288,7]
[393162265,1762289491566,-151.0,0.00023288,7]
[393162266,1762289491575,-151.0,0.00023288,7]
[393162267,1762289491584,-151.0,0.00023288,7]
[393162268,1762289491593,-151.0,0.00023288,7]
[393162269,1762289491602,-546.380336,0.00023288,7]
[393162270,1762289491611,-546.380336,0.00023288,7]
[393162271,1762289491621,-546.380336,0.00023288,7]
[393162272,1762289491630,-546.380329,0.00023288,7]
[393162273,1762289491639,-399.46520389,0.0002329,7]
[393162274,1762289491648,-2220.51,0.000233,7]
[393162275,1762289491658,-600.704181,0.000233,7]
[393162276,1762289491668,-1314.91,0.00023305,2]
[393162277,1762289491677,-500.0,0.00023383,2]
[393162278,1762289491691,-500.0,0.00023383,2]
[393162279,1762289491700,-500.0,0.00023383,2]
[393162280,1762289491709,-500.0,0.00023383,2]
[393162281,1762289491719,-452.41763232,0.00023383,2]
[393162282,1762289491729,-1751.45838198,0.00023397,3]
[393162283,1762289491738,-151.0,0.000234,5]
[393162284,1762289491748,-210.8307853,0.00023414,2]
[393162285,1762289491758,-986.57576033,0.00023465,3]
[393162286,1762289491769,-460.0,0.00023484,2]
[393162287,1762289491779,-6330.801631,0.00023656,2]
[393162288,1762289491792,-399.46520389,0.000237,3]
[393162289,1762289491801,-192.0206709,0.0002386,2]
[393162290,1762289491811,-864.0,0.00023887,20]
[393162291,1762289491820,-689.69,0.000239,14]
[393162292,1762289491830,-1000.0,0.00023931,2]
[393162293,1762289491839,-1000.0,0.00023931,2]
[393162294,1762289491849,-377.62299414,0.00023931,2]
[393162295,1762289491859,-1277.05048994,0.00024,60]
[393162296,1762289491868,-168.59,0.00024,14]
[393162297,1762289491878,-1000.0,0.00024,24]
[393162298,1762289491887,-530.74,0.00024,14]
[393162299,1762289491896,-151.0,0.00024,8]
[393162300,1762289491906,-399.46520389,0.00024,7]
[393162301,1762289491914,-560.0,0.00024032,2]
[393162302,1762289491924,-9420.65597145,0.00024142,2]
[393162303,1762289491939,-1751.45838198,0.00024181,4]
[393162304,1762289491948,-1577.9,0.00024237,2]
[393162305,1762289491958,-600.704181,0.00024264,7]
[393162306,1762289491967,-2631.63948427,0.00024272,2]
[393162307,1762289491977,-1500.0,0.00024479,2]
[393162308,1762289491986,-505.063071,0.00024479,2]
[393162309,1762289491995,-151.0,0.000245,5]
[393162310,1762289492004,-151.0,0.000245,9]
[393162311,1762289492014,-500.0,0.00024575,2]
[393162312,1762289492023,-673.73499857,0.0002458,2]
[393162313,1762289492032,-7940.9227143,0.00024629,2]
[393162314,1762289492041,-22769.4597933,0.00024629,2]
[393162315,1762289492051,-500.0,0.0002463,2]
[393162316,1762289492060,-150.0,0.00024658,2]
[393162317,1762289492069,-200.0,0.00024658,15]
[393162318,1762289492079,-316.9719592,0.00024658,2]
[393162319,1762289492088,-180.31041,0.00024658,7]
[393162320,1762289492097,-180.31041,0.00024658,7]
[393162321,1762289492107,-180.31041,0.00024658,7]
[393162322,1762289492115,-180.31041,0.00024658,7]
[393162323,1762289492124,-180.31041,0.00024658,7]
[393162324,1762289492133,-180.31041,0.00024658,7]
[393162325,1762289492142,-180.31041,0.00024658,7]
[393162326,1762289492152,-180.31041,0.00024658,7]
[393162327,1762289492161,-180.31041,0.00024658,7]
[393162328,1762289492171,-180.31041,0.00024658,7]
[393162329,1762289492182,-180.31041,0.00024658,7]
[393162330,1762289492193,-180.31041,0.00024658,7]
[393162331,1762289492203,-180.31041,0.00024658,7]
[393162332,1762289492212,-180.31041,0.00024658,7]
[393162333,1762289492222,-180.31041,0.00024658,7]
[393162334,1762289492231,-180.31041,0.00024658,7]
[393162335,1762289492240,-180.31041,0.00024658,7]
[393162336,1762289492249,-180.31041,0.00024658,7]
[393162337,1762289492258,-180.31041,0.00024658,7]
[393162338,1762289492268,-180.310414,0.00024658,7]
[393162339,1762289492277,-419.0,0.00024658,2]
[393162340,1762289492286,-986.57576033,0.00024674,4]
[393162341,1762289492296,-500.0,0.00024685,2]
[393162342,1762289492305,-419.0,0.00024713,2]
[393162343,1762289492315,-500.0,0.00024739,2]
[393162344,1762289492324,-419.0,0.00024768,2]
[393162345,1762289492333,-500.0,0.00024794,2]
[393162346,1762289492343,-2220.51,0.000248,7]
[393162347,1762289492352,-5238.4741744,0.000248,2]
[393162348,1762289492361,-419.0,0.00024822,2]
[393162349,1762289492370,-500.0,0.00024849,2]
[393162350,1762289492380,-6689.04,0.00024873,2]
[393162351,1762289492389,-500.0,0.00024873,2]
[393162352,1762289492398,-560.18735438,0.00024873,2]
[393162353,1762289492407,-154.75692793,0.00024873,2]
[393162354,1762289492416,-167.40312448,0.00024873,2]
[393162355,1762289492425,-419.0,0.00024877,2]
[393162356,1762289492439,-600.704181,0.000249,2]
[393162357,1762289492448,-466802.637579,0.000249,2]
[393162358,1762289492457,-200.90786999,0.00024904,2]
[393162359,1762289492467,-823.0,0.00024921,2]
[393162360,1762289492476,-419.0,0.00024932,2]
[393162361,1762289492485,-1751.45838198,0.00024965,4]
[393162362,1762289492494,-419.0,0.00024987,2]
[393162363,1762289492504,-1982.37610432,0.00025,2]
[393162364,1762289492513,-79077.7537473,0.00025,15]
[393162365,1762289492522,-500.0,0.00025,2]
[393162366,1762289492531,-346.56287852,0.00025,2]
[393162367,1762289492540,-88383.21418863,0.00025,2]
[393162368,1762289492550,-2515.6621876,0.00025026,2]
[393162369,1762289492560,-2000.0,0.00025027,2]
[393162370,1762289492569,-419.0,0.00025042,2]
[393162371,1762289492578,-419.0,0.00025096,2]
[393162372,1762289492589,-419.0,0.00025151,2]
[393162373,1762289492598,-1840.88,0.00025169,2]
[393162374,1762289492607,-574.89104445,0.000252,5]
[393162375,1762289492617,-250.0,0.00025205,2]
[393162376,1762289492626,-419.0,0.00025206,2]
[393162377,1762289492636,-600.704181,0.00025227,7]
[393162378,1762289492645,-291.7833296,0.00025256,2]
[393162379,1762289492654,-419.0,0.00025261,2]
[393162380,1762289492664,-419.0,0.00025316,2]
[393162381,1762289492673,-419.0,0.0002537,2]
[393162382,1762289492684,-689.69,0.000254,14]
[393162383,1762289492693,-200.0,0.00025417,4]
[393162384,1762289492703,-223.34226752,0.00025421,2]
[393162385,1762289492712,-419.0,0.00025425,2]
[393162386,1762289492722,-210.8307853,0.00025443,2]
[393162387,1762289492732,-419.0,0.0002548,2]
[393162388,1762289492741,-419.0,0.00025535,2]
[393162389,1762289492751,-2500.0,0.00025575,2]
[393162390,1762289492761,-419.0,0.0002559,2]
[393162391,1762289492775,-419.0,0.00025644,2]
[393162392,1762289492785,-176.171077,0.0002569,2]
[393162393,1762289492795,-419.0,0.00025699,2]
[393162394,1762289492805,-1751.45838198,0.00025748,5]
[393162395,1762289492816,-350.0,0.00025753,2]
[393162396,1762289492826,-419.0,0.00025754,2]
[393162397,1762289492835,-6330.801631,0.00025806,2]
[393162398,1762289492845,-419.0,0.00025809,2]
[393162399,1762289492855,-419.0,0.00025863,2]
[393162400,1762289492866,-986.57576033,0.00025883,5]
[393162401,1762289492875,-436.90553782,0.00025918,2]
[393162402,1762289492885,-39390.79881938,0.00026,10]
[393162403,1762289492895,-1000.0,0.00026,26]
[393162404,1762289492904,-399.46520389,0.00026,10]
[393162405,1762289492914,-2103.86,0.00026101,2]
[393162406,1762289492924,-1934.30776458,0.00026123,2]
[393162407,1762289492934,-193.33509636,0.0002616,2]
[393162408,1762289492943,-600.704181,0.0002619,7]
[393162409,1762289492952,-2220.51,0.000262,7]
[393162410,1762289492962,-1000.0,0.00026275,30]
[393162411,1762289492971,-450.0,0.00026301,2]
[393162412,1762289492981,-600.704181,0.00026399,2]
[393162413,1762289492991,-1000.0,0.000264,2]
[393162414,1762289493000,-1751.45838198,0.00026532,5]
[393162415,1762289493009,-12009.86320428,0.00026576,2]
[393162416,1762289493019,-433.300092,0.00026676,2]
[393162417,1762289493028,-286.22557545,0.00026732,5]
[393162418,1762289493037,-7940.9227143,0.00026762,2]
[393162419,1762289493054,-22769.4597933,0.00026762,2]
[393162420,1762289493063,-550.0,0.00026849,2]
[393162421,1762289493073,-166.0,0.00026907,3]
[393162422,1762289493082,-151.0,0.00026907,3]
[393162423,1762289493092,-153.0,0.00026907,3]
[393162424,1762289493101,-166.0,0.00026907,3]
[393162425,1762289493111,-176.3809575,0.00026907,3]
[393162426,1762289493121,-166.0,0.00026907,3]
[393162427,1762289493130,-151.0,0.00026907,3]
[393162428,1762289493139,-274.0,0.00026919,2]
[393162429,1762289493148,-600.0,0.00027,14]
[393162430,1762289493158,-399.46520389,0.00027,3]
[393162431,1762289493168,-56925.94253064,0.00027,3]
[393162432,1762289493177,-250.0,0.00027,7]
[393162433,1762289493189,-250.0,0.00027,7]
[393162434,1762289493199,-250.0,0.00027,7]
[393162435,1762289493208,-689.69,0.00027,14]
[393162436,1762289493218,-166.0,0.00027002,3]
[393162437,1762289493228,-166.0,0.00027002,3]
[393162438,1762289493239,-2366.84,0.00027033,2]
[393162439,1762289493248,-986.57576033,0.00027092,6]
[393162440,1762289493257,-274.0,0.00027118,2]
[393162441,1762289493266,-1010.4386599,0.00027123,3]
[393162442,1762289493276,-600.704181,0.00027154,7]
[393162443,1762289493286,-1152.0,0.00027157,2]
[393162444,1762289493296,-325.88787461,0.00027256,2]
[393162445,1762289493306,-1751.45838198,0.00027316,6]
[393162446,1762289493317,-767.0,0.00027326,7]
[393162447,1762289493326,-2381.0,0.00027347,2]
[393162448,1762289493336,-192.0206709,0.00027359,2]
[393162449,1762289493346,-2515.6621876,0.00027359,2]
[393162450,1762289493356,-270.74952652,0.0002739,2]
[393162451,1762289493366,-650.0,0.00027397,5]
[393162452,1762289493376,-151.0,0.00027397,31]
[393162453,1762289493386,-151.0,0.00027397,31]
[393162454,1762289493396,-208.99361,0.00027397,31]
[393162455,1762289493406,-500.0,0.00027397,5]
[393162456,1762289493416,-150.0,0.00027397,5]
[393162457,1762289493426,-150.0,0.00027397,5]
[393162458,1762289493439,-3215.01,0.000274,2]
[393162459,1762289493449,-274.0,0.00027471,2]
[393162460,1762289493459,-274.0,0.00027526,7]
[393162461,1762289493469,-1218.558861,0.0002753,2]
[393162462,1762289493478,-767.0,0.00027543,2]
[393162463,1762289493488,-5888.0,0.00027604,2]
[393162464,1762289493498,-2000.0,0.00027644,7]
[393162465,1762289493508,-2220.51,0.000277,7]
[393162466,1762289493516,-767.0,0.00027713,2]
[393162467,1762289493526,-767.0,0.00027723,2]
[393162468,1762289493536,-2381.0,0.00027758,2]
[393162469,1762289493546,-2381.0,0.00027846,7]
[393162470,1762289493556,-600.704181,0.00027898,2]
[393162471,1762289493566,-750.0,0.00027945,5]
[393162472,1762289493576,-1000.0,0.00027945,5]
[393162473,1762289493585,-250.0,0.00027945,5]
[393162474,1762289493595,-250.0,0.00027945,5]
[393162475,1762289493605,-2629.83,0.00027966,2]
[393162476,1762289493614,-1000.0,0.00028,28]
[393162477,1762289493624,-1753.20984036,0.000281,7]
[393162478,1762289493634,-168.81119162,0.00028105,2]
[393162479,1762289493643,-321.19676832,0.00028111,2]
[393162480,1762289493652,-767.0,0.00028144,2]
[393162481,1762289493662,-361.73633754,0.00028149,2]
[393162482,1762289493671,-987.56233609,0.00028301,7]
[393162483,1762289493680,-274.0,0.00028427,2]
[393162484,1762289493695,-168.81119162,0.00028443,17]
[393162485,1762289493704,-361.73633754,0.00028487,17]
[393162486,1762289493714,-850.0,0.00028493,5]
[393162487,1762289493723,-1317.27871896,0.00028493,5]
[393162488,1762289493733,-350.0,0.00028493,5]
[393162489,1762289493742,-350.0,0.00028493,5]
[393162490,1762289493751,-3215.01,0.000285,2]
[393162491,1762289493761,-689.69,0.000285,14]
[393162492,1762289493770,-203.0,0.00028548,29]
[393162493,1762289493781,-229.32809504,0.00028655,30]
[393162494,1762289493790,-2381.0,0.00028689,2]
[393162495,1762289493799,-2381.0,0.00028725,2]
[393162496,1762289493808,-767.0,0.00028741,2]
[393162497,1762289493818,-17415.79144632,0.0002876,2]
[393162498,1762289493829,-767.0,0.00028762,2]
[393162499,1762289493839,-168.81119162,0.00028781,32]
[393162500,1762289493848,-250.0,0.000288,7]
[393162501,1762289493862,-250.0,0.000288,7]
[393162502,1762289493871,-250.0,0.000288,7]
[393162503,1762289493881,-176.7,0.000288,7]
[393162504,1762289493891,-361.73633754,0.00028826,32]
[393162505,1762289493901,-605.0,0.0002886,2]
[393162506,1762289493911,-767.0,0.00028875,2]
[393162507,1762289493921,-1000.0,0.00028903,30]
[393162508,1762289493931,-244.0,0.00028903,30]
[393162509,1762289493945,-767.0,0.00028909,2]
[393162510,1762289493956,-255.7943568,0.00028923,30]
[393162511,1762289493966,-605.0,0.00029005,2]
[393162512,1762289493976,-151.0,0.00029041,30]
[393162513,1762289493986,-151.0,0.00029041,30]
[393162514,1762289494164,-151.0,0.00029041,30]
[393162515,1762289494175,-151.0,0.00029041,30]
[393162516,1762289494187,-151.0,0.00029041,30]
[393162517,1762289494197,-151.0,0.00029041,30]
[393162518,1762289494207,-151.0,0.00029041,30]
[393162519,1762289494216,-279.273796,0.00029041,30]
[393162520,1762289494226,-950.0,0.00029041,5]
[393162521,1762289494236,-450.0,0.00029041,5]
[393162522,1762289494247,-450.0,0.00029041,5]
[393162523,1762289494257,-605.0,0.00029115,7]
[393162524,1762289494267,-168.81119162,0.0002912,48]
[393162525,1762289494277,-361.73633754,0.00029164,48]
[393162526,1762289494287,-359.99241963,0.00029256,2]
[393162527,1762289494297,-2631.63948427,0.00029284,2]
[393162528,1762289494306,-321.19676832,0.00029295,56]
[393162529,1762289494316,-150.0,0.00029367,30]
[393162530,1762289494325,-600.704181,0.00029397,2]
[393162531,1762289494335,-2220.51,0.000294,7]
[393162532,1762289494345,-160.0,0.00029405,2]
[393162533,1762289494356,-399.46520389,0.00029405,2]
[393162534,1762289494366,-160.0,0.00029405,2]
[393162535,1762289494375,-160.0,0.00029405,2]
[393162536,1762289494386,-160.0,0.00029405,2]
[393162537,1762289494396,-168.81119162,0.00029458,63]
[393162538,1762289494405,-3215.01,0.000295,2]
[393162539,1762289494415,-361.73633754,0.00029503,63]
[393162540,1762289494424,-767.0,0.00029584,2]
[393162541,1762289494435,-1053.93349357,0.00029589,5]
[393162542,1762289494445,-550.0,0.00029589,5]
[393162543,1762289494455,-550.0,0.00029589,5]
[393162544,1762289494464,-1613.0,0.00029593,2]
[393162545,1762289494474,-168.81119162,0.00029796,79]
[393162546,1762289494483,-361.73633754,0.00029842,79]
[393162547,1762289494493,-767.0,0.00029906,2]
[393162548,1762289494503,-168.8111916,0.00029914,30]
[393162549,1762289494513,-15949.23284946,0.0003,20]
[393162550,1762289494522,-8282.76793638,0.0003,10]
[393162551,1762289494532,-689.69,0.0003,14]
[393162552,1762289494542,-457.65793172,0.00030006,2]
[393162553,1762289494551,-168.81119162,0.00030134,94]
[393162554,1762289494561,-151.0,0.00030136,14]
[393162555,1762289494571,-534.24012932,0.00030137,5]
[393162556,1762289494580,-650.0,0.00030137,5]
[393162557,1762289494590,-361.73633754,0.0003018,94]
[393162558,1762289494599,-199.0,0.0003041,14]
[393162559,1762289494608,-321.19676832,0.00030478,110]
[393162560,1762289494618,-361.73633754,0.00030519,110]
[393162561,1762289494627,-2164.0,0.00030676,2]
[393162562,1762289494637,-999.994,0.00030676,2]
[393162563,1762289494648,-681.368,0.00030676,2]
[393162564,1762289494659,-4396.0,0.00030676,2]
[393162565,1762289494669,-860.16108941,0.00030685,5]
[393162566,1762289494680,-3215.01,0.000307,2]
[393162567,1762289494692,-225.41,0.00030765,30]
[393162568,1762289494703,-600.704181,0.00030897,2]
[393162569,1762289494713,-199.0,0.00030958,15]
[393162570,1762289494724,-200.0,0.00031,7]
[393162571,1762289494734,-2220.51,0.000311,7]
[393162572,1762289494743,-394.09696465,0.00031256,2]
[393162573,1762289494752,-199.0,0.00031506,16]
[393162574,1762289494762,-151.0,0.00031671,14]
[393162575,1762289494773,-1000.0,0.00031793,30]
[393162576,1762289494786,-492.0,0.00031793,30]
[393162577,1762289494796,-3215.01,0.000318,2]
[393162578,1762289494807,-6926.10695814,0.000319,2]
[393162579,1762289494816,-689.69,0.000319,14]
[393162580,1762289494826,-250.0,0.00032,7]
[393162581,1762289494836,-250.0,0.00032,7]
[393162582,1762289494846,-33784.02104859,0.0003201,5]
[393162583,1762289494857,-339.11,0.00032054,17]
[393162584,1762289494866,-201.1,0.000321,7]
[393162585,1762289494876,-338.12,0.00032163,30]